bitfinex/quotes_SOLUSD_20250619
["timestamp","ask_amount","ask_price","bid_price","bid_amount"]
[1750320845153,5.2293702,145.64,145.62,6.86718857]
[1750320845528,5.2293702,145.65,145.62,6.86718857]
[1750320846350,5.2293702,145.65,145.61,5.2293702]
[1750320846351,5.2293702,145.65,145.61,6.86766018]
[1750320846532,5.2293702,145.65,145.61,12.09703038]
[1750320847954,31.2293702,145.65,145.61,6.86766018]
[1750320848258,5.2293702,145.64,145.61,6.86766018]
[1750320848826,36.35749802,145.65,145.61,6.86766018]
[1750320849149,31.2293702,145.65,145.61,6.86766018]
[1750320849934,5.2293702,145.64,145.61,6.86766018]
[1750320850171,5.2293702,145.63,145.61,6.86766018]
[1750320850324,5.2293702,145.62,145.61,6.86766018]
[1750320850525,5.2293702,145.63,145.61,6.86766018]
[1750320851758,5.2293702,145.62,145.59,6.86860361]
[1750320852136,5.2293702,145.6,145.59,6.86860361]
[1750320853334,5.2293702,145.6,145.57,24.04330254]
[1750320856873,31.2293702,145.61,145.57,29.27267274]
[1750320858335,26.0,145.61,145.57,29.27267274]
[1750320858557,31.2293702,145.61,145.57,29.27267274]
[1750320859242,31.2293702,145.61,145.57,24.04330254]
[1750320859464,31.2293702,145.61,145.57,29.27267274]
[1750320860641,31.2293702,145.61,145.57,17.17375525]
[1750320860871,31.2293702,145.61,145.57,22.40312545]
[1750320862369,31.2293702,145.61,145.57,29.27267274]
[1750320863669,31.2293702,145.61,145.57,117.47267274]
[1750320863867,5.2293702,145.6,145.57,112.24330254]
[1750320867488,5.2293702,145.6,145.57,95.06954729]
[1750320869079,31.2293702,145.6,145.57,95.06954729]
[1750320869669,31.2293702,145.6,145.57,6.86954729]
[1750320872963,27.76,145.64,145.57,29.27278573]
[1750320873165,31.2293702,145.63,145.58,5.2293702]
[1750320873381,27.76,145.64,145.58,5.2293702]
[1750320873583,5.2293702,145.64,145.6,12.09750206]
[1750320873792,5.2293702,145.64,145.6,6.86813186]
[1750320873793,31.2293702,145.64,145.6,6.86813186]
[1750320874580,5.2293702,145.63,145.6,6.86813186]
[1750320878467,5.2293702,145.62,145.6,6.86813186]
[1750320879185,5.2293702,145.62,145.59,24.03966169]
[1750320885072,5.2293702,145.63,145.59,24.03966169]
[1750320885669,5.2293702,145.62,145.59,24.03966169]
[1750320887098,26.0,145.64,145.59,24.03966169]
[1750320887298,26.0,145.64,145.59,6.86860361]
[1750320887299,5.2293702,145.61,145.59,6.86860361]
[1750320889109,5.2293702,145.61,145.58,6.86907542]
[1750320894294,5.14439787,145.6,145.58,6.86907542]
[1750320894496,5.2293702,145.61,145.58,6.86907542]
[1750320894694,5.14511793,145.6,145.58,6.86907542]
[1750320894895,5.2293702,145.61,145.58,6.86907542]
[1750320895096,5.14511859,145.6,145.58,6.86907542]
[1750320895300,5.2293702,145.61,145.58,6.86907542]
[1750320895504,5.14546156,145.6,145.58,6.86907542]
[1750320895697,5.2293702,145.61,145.58,6.86907542]
[1750320895897,5.14546156,145.6,145.58,6.86907542]
[1750320896105,5.2293702,145.6,145.58,6.86907542]
[1750320896996,5.14592003,145.59,145.56,22.4032445]
[1750320897307,5.2293702,145.61,145.57,6.86954729]
[1750320897486,5.14585732,145.6,145.57,6.86954729]
[1750320897694,5.14585732,145.59,145.57,6.86954729]
[1750320898034,5.2293702,145.61,145.57,6.86954729]
[1750320898317,5.14565781,145.6,145.57,6.86954729]
[1750320898492,5.2293702,145.61,145.57,6.86954729]
[1750320898694,5.14548019,145.6,145.57,6.86954729]
[1750320898922,5.14548019,145.59,145.57,6.86954729]
[1750320899092,5.2293702,145.61,145.57,6.86954729]
[1750320899294,5.14551992,145.6,145.57,6.86954729]
[1750320899491,5.14551992,145.59,145.57,6.86954729]
[1750320899699,5.2293702,145.6,145.57,6.86954729]
[1750320900000,5.14529059,145.59,145.57,6.86954729]
[1750320900201,5.2293702,145.6,145.57,6.86954729]
[1750320900413,30.73736083,145.61,145.57,6.86954729]
[1750320900414,10.37466153,145.59,145.57,6.86954729]
[1750320900724,5.2293702,145.59,145.57,6.86954729]
[1750320901520,5.2293702,145.59,145.55,6.87049124]
[1750320901900,5.2293702,145.59,145.55,12.09986144]
[1750320902412,10.37450566,145.58,145.55,6.87049124]
[1750320902624,5.2293702,145.58,145.55,6.87049124]
[1750320903197,34.0677,145.61,145.55,6.87049124]
[1750320903495,5.2293702,145.58,145.55,6.87049124]
[1750320904334,5.2293702,145.58,145.54,6.8709633]
[1750320904497,5.2293702,145.58,145.54,12.1003335]
[1750320904932,5.2293702,145.58,145.54,6.8709633]
[1750320905138,10.3725245,145.57,145.54,6.8709633]
[1750320905443,25.64974546,145.6,145.54,6.8709633]
[1750320905444,5.2293702,145.56,145.54,6.8709633]
[1750320906420,5.2293702,145.55,145.52,6.87190764]
[1750320906628,5.2293702,145.53,145.52,6.87190764]
[1750320906801,31.2293702,145.58,145.52,29.28104694]
[1750320907006,5.13958157,145.57,145.54,5.2293702]
[1750320907215,5.2293702,145.58,145.54,5.2293702]
[1750320907530,5.1393069,145.57,145.54,5.2293702]
[1750320907700,5.2293702,145.58,145.54,5.2293702]
[1750320910927,5.2293702,145.58,145.55,6.87049124]
[1750320911328,5.2293702,145.58,145.55,24.04671934]
[1750320913518,5.2293702,145.56,145.55,6.87049124]
[1750320914613,5.2293702,145.56,145.53,24.04994978]
[1750320916119,5.13410694,145.58,145.55,5.2293702]
[1750320916321,26.0,145.59,145.56,5.2293702]
[1750320916716,31.2293702,145.59,145.55,5.2293702]
[1750320918047,31.2293702,145.59,145.56,6.87001923]
[1750320919631,26.0,145.59,145.56,29.27443752]
[1750320919945,6.4242627,145.63,145.58,5.2293702]
[1750320919946,26.0,145.61,145.58,5.2293702]
[1750320920241,26.0,145.61,145.59,6.86860361]
[1750320921733,26.0,145.61,145.59,15.04637102]
[1750320922123,26.0,145.61,145.58,8.17776741]
[1750320923343,26.0,145.61,145.59,6.86860361]
[1750320925827,5.13438625,145.62,145.59,32.21788005]
[1750320926033,34.17776741,145.64,145.6,8.17776741]
[1750320926234,5.13413696,145.63,145.6,8.17776741]
[1750320926432,34.17776741,145.64,145.6,8.17776741]
[1750320926621,5.13424831,145.63,145.6,8.17776741]
[1750320926822,34.17776741,145.64,145.6,8.17776741]
[1750320927029,5.13420101,145.63,145.6,8.17776741]
[1750320927230,34.17776741,145.64,145.6,8.17776741]
[1750320927429,5.13421024,145.63,145.59,32.21788005]
[1750320927632,34.17776741,145.64,145.59,32.21788005]
[1750320927833,5.13437189,145.63,145.59,32.21788005]
[1750320928048,34.17776741,145.64,145.59,32.21788005]
[1750320928248,5.13436266,145.63,145.59,32.21788005]
[1750320928448,34.17776741,145.64,145.59,32.21788005]
[1750320928652,5.13451246,145.63,145.59,32.21788005]
[1750320928953,34.17776741,145.64,145.59,32.21788005]
[1750320929123,5.13450389,145.63,145.59,32.21788005]
[1750320929329,34.17776741,145.64,145.59,32.21788005]
[1750320929637,5.13458692,145.63,145.59,32.21788005]
[1750320929839,8.17776741,145.63,145.59,32.21788005]
[1750320930029,8.17776741,145.63,145.59,25.34927644]
[1750320932028,8.17776741,145.63,145.59,32.21788005]
[1750320932347,8.17776741,145.62,145.59,24.04011264]
[1750320936338,26.0,145.64,145.59,24.04011264]
[1750320936739,8.17776741,145.63,145.59,25.34927644]
[1750320937641,8.17776741,145.63,145.59,32.21788005]
[1750320939055,34.17776741,145.64,145.6,8.17776741]
[1750320939259,26.0,145.64,145.61,8.17776741]
[1750320940253,26.0,145.64,145.62,6.86718857]
[1750320941160,26.0,145.64,145.61,24.03645729]
[1750320941758,31.23212591,145.64,145.61,24.03645729]
[1750320941952,26.0,145.64,145.61,24.03645729]
[1750320942160,31.23212591,145.64,145.61,24.03645729]
[1750320943461,31.23212591,145.64,145.61,17.16879711]
[1750320944055,31.23212591,145.64,145.6,6.86813186]
[1750320944056,5.23212591,145.63,145.6,6.86813186]
[1750320945562,5.23212591,145.63,145.58,24.0406703]
[1750320945738,5.23212591,145.63,145.59,5.23212591]
[1750320948868,5.23212591,145.63,145.6,6.86813186]
[1750320951271,5.23212591,145.63,145.58,24.04176397]
[1750320951474,5.23212591,145.63,145.59,5.23212591]
[1750320951848,31.12925005,145.64,145.59,5.23212591]
[1750320952043,5.23212591,145.63,145.59,5.23212591]
[1750320952563,26.0,145.64,145.6,5.23212591]
[1750320952757,20.64661274,145.65,145.6,5.23212591]
[1750320952954,20.64661274,145.65,145.61,5.23212591]
[1750320953664,15.41448683,145.65,145.62,24.03516]
[1750320953966,20.64661274,145.65,145.62,24.03516]
[1750320954348,5.23212591,145.64,145.62,24.03516]
[1750320955771,5.23212591,145.64,145.62,17.16797143]
[1750320957782,5.23212591,145.63,145.61,6.86766018]
[1750320957987,5.23212591,145.62,145.61,6.86766018]
[1750320958181,5.23212591,145.63,145.61,6.86766018]
[1750320959088,5.23212591,145.64,145.61,6.86766018]
[1750320959882,5.23212591,145.64,145.59,22.40247347]
[1750320961081,5.23212591,145.63,145.59,22.40247347]
[1750320961857,5.23212591,145.63,145.59,29.27107708]
[1750320965250,5.23212591,145.63,145.59,24.03895117]
[1750320966053,5.23212591,145.63,145.59,29.27107708]
[1750320972157,5.23212591,145.62,145.59,17.17034756]
[1750320972958,10.38024403,145.63,145.59,17.17034756]
[1750320973178,5.14903975,145.62,145.59,17.17034756]
[1750320973363,5.23212591,145.63,145.59,17.17034756]
[1750320973565,5.1490305,145.62,145.59,17.17034756]
[1750320973769,5.23212591,145.63,145.59,24.03895117]
[1750320973968,5.14941353,145.62,145.59,29.27107708]
[1750320974173,5.23212591,145.63,145.59,29.27107708]
[1750320974669,5.14933118,145.62,145.59,29.27107708]
[1750320974870,5.23212591,145.63,145.59,29.27107708]
[1750320975088,5.14948254,145.62,145.59,29.27107708]
[1750320975289,5.23212591,145.63,145.59,24.03895117]
[1750320975490,5.14951052,145.62,145.59,29.27107708]
[1750320975786,5.23212591,145.63,145.59,24.03895117]
[1750320975971,5.14955181,145.62,145.59,24.03895117]
[1750320976170,5.23212591,145.63,145.59,24.03895117]
[1750320976373,5.14955181,145.62,145.59,24.03895117]
[1750320976576,5.23212591,145.64,145.59,29.27107708]
[1750320976790,5.14955503,145.63,145.6,5.23212591]
[1750320976985,20.64661274,145.65,145.6,5.23212591]
[1750320977180,10.29797786,145.64,145.61,24.03681065]
[1750320977368,5.14934674,145.63,145.61,24.03681065]
[1750320977691,20.64661274,145.65,145.61,24.03681065]
[1750320977894,10.29794586,145.64,145.61,24.03681065]
[1750320978072,20.64661274,145.65,145.61,24.03681065]
[1750320978274,15.5296375,145.64,145.61,24.03681065]
[1750320978495,5.14904642,145.63,145.61,24.03681065]
[1750320978791,5.23212591,145.64,145.61,24.03681065]
[1750320978999,5.14939522,145.63,145.61,24.03681065]
[1750320979175,5.23212591,145.64,145.59,5.23212591]
[1750320979375,5.1493923,145.63,145.59,5.23212591]
[1750320979592,5.23212591,145.64,145.59,5.23212591]
[1750320979796,5.14947671,145.63,145.59,5.23212591]
[1750320979971,5.23212591,145.64,145.59,5.23212591]
[1750320980175,5.14947606,145.63,145.59,5.23212591]
[1750320980371,5.23212591,145.64,145.6,24.03846153]
[1750320980680,5.14945365,145.63,145.6,24.03846153]
[1750320980881,5.23212591,145.64,145.6,24.03846153]
[1750320981080,5.14955206,145.63,145.6,29.27058744]
[1750320981387,5.23212591,145.64,145.6,29.27058744]
[1750320981590,5.14933293,145.63,145.6,29.27058744]
[1750320981790,5.23212591,145.64,145.59,5.23212591]
[1750320981994,10.38169671,145.63,145.59,93.43212591]
[1750320982195,5.23212591,145.63,145.59,93.43212591]
[1750320983175,5.23212591,145.63,145.6,24.03846153]
[1750320985398,5.23212591,145.64,145.6,29.27058744]
[1750320985707,5.14965191,145.63,145.6,29.27058744]
[1750320985886,5.23212591,145.64,145.6,29.27058744]
[1750320986090,5.23212591,145.64,145.6,117.47058744]
[1750320986680,20.64661274,145.65,145.6,117.47058744]
[1750320986981,5.14907175,145.64,145.6,117.47058744]
[1750320987183,20.64661274,145.65,145.6,117.47058744]
[1750320987382,5.14905051,145.64,145.6,117.47058744]
[1750320987610,20.64661274,145.65,145.6,117.47058744]
[1750320987902,5.14864557,145.64,145.6,117.47058744]
[1750320988204,20.64661274,145.65,145.6,117.47058744]
[1750320988403,5.14863632,145.64,145.6,117.47058744]
[1750320988603,20.64661274,145.65,145.6,117.47058744]
[1750320988806,5.14824805,145.64,145.6,117.47058744]
[1750320989000,20.64661274,145.65,145.6,117.47058744]
[1750320989191,5.14824805,145.64,145.6,117.47058744]
[1750320989394,20.64661274,145.65,145.6,117.47058744]
[1750320989595,5.14793506,145.64,145.6,117.47058744]
[1750320989800,20.64661274,145.65,145.6,117.47058744]
[1750320990108,5.14787027,145.64,145.6,117.47058744]
[1750320990291,20.64661274,145.65,145.61,5.23212591]
[1750320990494,5.14736842,145.64,145.61,5.23212591]
[1750320990805,20.64661274,145.65,145.61,5.23212591]
[1750320991002,5.14730465,145.64,145.61,5.23212591]
[1750320991192,20.64661274,145.65,145.61,5.23212591]
[1750320991393,5.14733514,145.64,145.61,5.23212591]
[1750320991603,15.41448683,145.65,145.62,5.23212591]
[1750320991989,15.41448683,145.65,145.61,5.23212591]
[1750320992595,15.41448683,145.65,145.62,24.03516]
[1750320994397,20.64661274,145.65,145.62,24.03516]
[1750320995290,15.41448683,145.65,145.62,24.03516]
[1750320995598,20.64661274,145.65,145.62,24.03516]
[1750321000422,15.41448683,145.65,145.62,24.03516]
[1750321000588,20.64661274,145.65,145.62,24.03516]
[1750321001722,20.64661274,145.65,145.62,17.16797143]
[1750321008426,15.41448683,145.65,145.62,22.40009734]
[1750321008619,15.41448683,145.65,145.62,105.36797143]
[1750321008825,15.41448683,145.65,145.63,5.23212591]
[1750321009628,15.41448683,145.65,145.64,5.23212591]
[1750321010028,5.82,145.72,145.64,5.23212591]
[1750321010029,5.23212591,145.7,145.64,93.43212591]
[1750321010219,5.14115008,145.69,145.66,5.23212591]
[1750321010418,5.23212591,145.71,145.68,24.02526084]
[1750321010624,5.13841456,145.7,145.68,24.02526084]
[1750321010827,5.23212591,145.71,145.68,24.02526084]
[1750321011041,5.13835985,145.7,145.68,24.02526084]
[1750321011244,7.80255187,145.71,145.68,24.02526084]
[1750321011539,5.13610666,145.7,145.68,24.02526084]
[1750321011751,5.23212591,145.71,145.68,24.02526084]
[1750321011944,5.13606312,145.7,145.68,24.02526084]
[1750321012148,5.23212591,145.71,145.68,17.1609006]
[1750321012442,5.13606247,145.7,145.68,17.1609006]
[1750321012625,5.23212591,145.71,145.68,17.1609006]
[1750321012816,5.1342192,145.7,145.68,17.1609006]
[1750321013137,5.23212591,145.71,145.68,17.1609006]
[1750321013721,2.57042596,145.73,145.68,17.1609006]
[1750321013937,5.23212591,145.71,145.68,24.02526084]
[1750321015629,5.13153803,145.72,145.68,24.02526084]
[1750321015836,2.56749596,145.73,145.68,24.02526084]
[1750321015837,5.23212591,145.71,145.68,24.02526084]
[1750321016936,26.0,145.73,145.68,24.02526084]
[1750321017131,5.23212591,145.71,145.68,24.02526084]
[1750321017959,5.23212591,145.72,145.68,24.02526084]
[1750321018122,5.23212591,145.74,145.69,5.23212591]
[1750321018327,5.23212591,145.73,145.69,5.23212591]
[1750321019161,5.23212591,145.72,145.68,117.45738675]
[1750321019328,5.23212591,145.71,145.68,112.22526084]
[1750321019517,5.23212591,145.71,145.68,24.02526084]
[1750321020226,5.23212591,145.7,145.68,24.02526084]
[1750321020429,5.23212591,145.7,145.68,6.86436024]
[1750321020950,5.23212591,145.69,145.68,6.86436024]
[1750321022552,5.23212591,145.69,145.67,6.86483146]
[1750321024931,5.23212591,145.7,145.67,6.86483146]
[1750321025835,5.23212591,145.7,145.67,24.02691013]
[1750321026623,5.23212591,145.71,145.67,29.25903604]
[1750321027447,5.23212591,145.7,145.67,17.16207867]
[1750321029356,5.23212591,145.7,145.67,24.02691013]
[1750321032069,26.0,145.72,145.67,24.02691013]
[1750321032235,5.23212591,145.7,145.67,24.02691013]
[1750321032762,5.23212591,145.69,145.67,24.02691013]
[1750321033572,5.23212591,145.69,145.67,17.16207867]
[1750321036811,5.23212591,145.7,145.67,17.16207867]
[1750321040150,5.23212591,145.71,145.67,22.39420458]
[1750321041768,31.23212591,145.72,145.67,29.25903604]
[1750321041977,31.23212591,145.72,145.68,5.23212591]
[1750321042156,10.35322481,145.73,145.69,5.23212591]
[1750321042780,10.35322481,145.73,145.68,5.23212591]
[1750321043170,10.35322481,145.73,145.68,6.82412591]
[1750321043562,10.35322481,145.73,145.69,24.02361176]
[1750321043762,5.23212591,145.72,145.69,24.02361176]
[1750321047188,5.1210989,145.73,145.69,24.02361176]
[1750321047565,10.35322481,145.73,145.69,24.02361176]
[1750321051091,10.35322481,145.73,145.69,29.25573767]
[1750321051495,5.23212591,145.72,145.69,29.25573767]
[1750321052094,5.23212591,145.72,145.69,24.02361176]
[1750321053588,5.1210989,145.73,145.69,24.02361176]
[1750321053793,5.23212591,145.72,145.69,24.02361176]
[1750321055196,5.1210989,145.73,145.69,24.02361176]
[1750321055392,5.23212591,145.72,145.69,24.02361176]
[1750321056895,5.13874951,145.71,145.68,95.06432164]
[1750321057099,5.23212591,145.69,145.68,95.06432164]
[1750321061904,5.23212591,145.69,145.66,24.02741249]
[1750321062103,5.23212591,145.68,145.66,24.02741249]
[1750321064375,5.23212591,145.67,145.66,6.86530275]
[1750321065486,2.56857607,145.7,145.66,6.86530275]
[1750321065697,5.23212591,145.67,145.66,6.86530275]
[1750321066204,5.23212591,145.67,145.64,24.03182436]
[1750321066577,5.23212591,145.68,145.64,24.03182436]
[1750321066993,5.23212591,145.67,145.64,24.03182436]
[1750321067192,5.23212591,145.66,145.64,24.03182436]
[1750321067395,5.23212591,145.65,145.64,24.03182436]
[1750321068103,5.23212591,145.65,145.62,24.03516]
[1750321069789,5.23212591,145.66,145.62,29.26728591]
[1750321070388,5.23212591,145.65,145.62,24.03516]
[1750321071207,5.23212591,145.66,145.62,29.26728591]
[1750321072287,26.0,145.69,145.62,29.26728591]
[1750321072483,5.23212591,145.66,145.62,117.46728591]
[1750321073315,5.23212591,145.67,145.64,24.03185937]
[1750321077718,5.23212591,145.66,145.64,24.03185937]
[1750321079421,5.23212591,145.65,145.64,24.03185937]
[1750321080301,5.23212591,145.65,145.64,6.86624553]
[1750321081112,5.23212591,145.65,145.61,24.035767]
[1750321081297,5.23212591,145.63,145.61,24.035767]
[1750321083006,5.23212591,145.64,145.61,24.035767]
[1750321086513,5.23212591,145.65,145.61,29.26789291]
[1750321086842,5.23212591,145.66,145.61,29.26789291]
[1750321087007,5.23212591,145.66,145.61,117.46789291]
[1750321087204,5.23212591,145.65,145.61,117.46789291]
[1750321090223,5.23212591,145.65,145.61,112.235767]
[1750321095210,5.23212591,145.64,145.61,112.235767]
[1750321095941,5.23212591,145.62,145.61,112.235767]
[1750321096112,5.23212591,145.62,145.61,24.035767]
[1750321097314,5.23212591,145.62,145.61,17.16810682]
[1750321097816,5.23212591,145.63,145.61,17.16810682]
[1750321099035,5.23212591,145.64,145.61,17.16810682]
[1750321099417,31.23212591,145.65,145.61,17.16810682]
[1750321101143,31.23212591,145.65,145.61,24.035767]
[1750321102726,5.23212591,145.64,145.61,24.035767]
[1750321105224,31.23212591,145.65,145.61,24.035767]
[1750321110641,5.23212591,145.64,145.61,24.035767]
[1750321111550,5.23212591,145.65,145.61,24.035767]
[1750321113038,5.23212591,145.64,145.61,24.035767]
[1750321120158,5.14449722,145.66,145.61,24.035767]
[1750321120456,5.23212591,145.64,145.61,24.035767]
[1750321126842,5.23212591,145.63,145.61,24.035767]
[1750321129160,5.14887077,145.65,145.61,24.035767]
[1750321129369,10.38093405,145.64,145.61,24.035767]
[1750321129573,5.23212591,145.64,145.61,24.035767]
[1750321129873,5.23212591,145.63,145.61,24.035767]
[1750321130174,5.23212591,145.62,145.61,6.86766018]
[1750321130543,5.14941048,145.64,145.61,6.86766018]
[1750321130761,5.23212591,145.65,145.61,12.09978609]
[1750321131095,5.23212591,145.65,145.61,29.26893656]
[1750321133580,5.23212591,145.65,145.61,24.03681065]
[1750321133781,5.23212591,145.64,145.61,24.03681065]
[1750321135491,5.23212591,145.65,145.61,24.03681065]
[1750321138186,5.23212591,145.64,145.61,24.03681065]
[1750321141073,5.23212591,145.65,145.61,29.26893656]
[1750321141482,5.23212591,145.65,145.61,24.03681065]
[1750321141681,5.23212591,145.65,145.61,29.26893656]
[1750321144576,26.0,145.67,145.62,5.23212591]
[1750321144577,31.23212591,145.67,145.62,5.23212591]
[1750321144893,26.0,145.67,145.63,5.23212591]
[1750321145275,26.0,145.67,145.64,5.23212591]
[1750321145479,26.0,145.67,145.65,6.86577411]
[1750321145691,5.23212591,145.71,145.66,5.23212591]
[1750321145995,5.14603757,145.7,145.67,5.23212591]
[1750321146193,9.98796444,145.71,145.67,5.23212591]
[1750321146395,5.23212591,145.71,145.67,5.23212591]
[1750321146974,5.23212591,145.71,145.68,24.02526084]
[1750321147311,36.373977,145.7,145.68,24.02526084]
[1750321147604,5.23212591,145.69,145.68,24.02526084]
[1750321148100,5.23212591,145.69,145.68,6.86436024]
[1750321148996,5.23212591,145.69,145.65,24.02903332]
[1750321149170,5.23212591,145.67,145.65,24.02903332]
[1750321149682,31.23212591,145.68,145.65,24.02903332]
[1750321150789,26.0,145.68,145.65,24.02903332]
[1750321151090,34.1710316,145.68,145.65,24.02903332]
[1750321152198,8.1710316,145.68,145.65,24.02903332]
[1750321154581,8.1710316,145.68,145.65,17.16325921]
[1750321156400,5.13434842,145.69,145.65,17.16325921]
[1750321156401,26.0,145.7,145.65,17.16325921]
[1750321156699,8.1710316,145.68,145.65,17.16325921]
[1750321158480,8.1710316,145.68,145.65,24.02903332]
[1750321158679,8.1710316,145.69,145.65,24.02903332]
[1750321161308,8.1710316,145.69,145.65,32.20006492]
[1750321161477,34.1710316,145.7,145.66,8.1710316]
[1750321161681,34.1710316,145.7,145.65,25.33429081]
[1750321162408,34.1710316,145.7,145.65,113.53429081]
[1750321163803,34.1710316,145.7,145.65,120.40006492]
[1750321165291,8.1710316,145.69,145.65,120.40006492]
[1750321165983,5.13129545,145.73,145.66,18.64964886]
[1750321166185,31.23008186,145.77,145.66,18.64964886]
[1750321166186,5.13020182,145.74,145.7,8.1710316]
[1750321166384,13.30165,145.75,145.7,8.1710316]
[1750321166588,5.12827128,145.74,145.7,8.1710316]
[1750321166893,8.1710316,145.75,145.7,8.1710316]
[1750321167298,34.1710316,145.75,145.7,8.1710316]
[1750321167496,8.1710316,145.75,145.71,24.02031431]
[1750321167802,8.1710316,145.75,145.71,32.19134591]
[1750321168514,13.29604155,145.75,145.71,32.19134591]
[1750321169716,13.29604155,145.75,145.71,8.1710316]
[1750321171104,8.1710316,145.75,145.71,8.1710316]
[1750321171296,8.1710316,145.74,145.7,8.1710316]
[1750321171980,8.1710316,145.74,145.71,24.02031431]
[1750321173322,5.12180044,145.75,145.71,24.02031431]
[1750321173323,8.1710316,145.75,145.71,32.19134591]
[1750321173821,31.12180044,145.76,145.72,8.1710316]
[1750321174114,34.1710316,145.76,145.73,24.01701776]
[1750321174525,26.0,145.76,145.73,24.01701776]
[1750321174726,34.1710316,145.76,145.73,24.01701776]
[1750321178016,8.1710316,145.75,145.73,24.01701776]
[1750321179336,8.1710316,145.75,145.73,17.15501269]
[1750321182826,5.22475444,145.75,145.73,17.15501269]
[1750321187043,5.22475444,145.75,145.72,6.86247598]
[1750321191225,5.22475444,145.75,145.72,24.01866593]
[1750321193953,5.22475444,145.74,145.72,6.86247598]
[1750321194244,5.22475444,145.73,145.72,6.86247598]
[1750321195564,5.22475444,145.73,145.7,24.02186662]
[1750321197634,5.22475444,145.72,145.7,17.15844864]
[1750321200851,5.22475444,145.72,145.69,6.86388907]
[1750321201057,5.22475444,145.7,145.69,6.86388907]
[1750321201754,5.22475444,145.7,145.65,5.22475444]
[1750321201985,5.22475444,145.69,145.66,24.02842905]
[1750321202551,5.22475444,145.7,145.66,24.02842905]
[1750321202755,5.22475444,145.69,145.66,24.02842905]
[1750321205247,5.22475444,145.68,145.66,24.02842905]
[1750321205667,5.22475444,145.68,145.66,6.86530275]
[1750321205846,5.13182571,145.71,145.63,111.16573474]
[1750321205847,5.22475444,145.67,145.64,6.86624553]
[1750321206050,5.22475444,145.65,145.64,6.86624553]
[1750321206543,5.22475444,145.66,145.64,6.86624553]
[1750321208654,32.61259746,145.72,145.64,29.25661381]
[1750321208655,5.12834419,145.69,145.64,29.25661381]
[1750321208863,5.22475444,145.68,145.64,29.25661381]
[1750321209496,5.22475444,145.67,145.64,24.03185937]
[1750321209774,5.22475444,145.68,145.64,24.03185937]
[1750321210653,5.22475444,145.67,145.64,24.03185937]
[1750321210887,8.17162703,145.67,145.64,24.03185937]
[1750321217277,8.17162703,145.66,145.64,24.03185937]
[1750321217470,8.17162703,145.67,145.64,24.03185937]
[1750321217863,8.17162703,145.68,145.64,24.03185937]
[1750321218058,8.17162703,145.68,145.64,32.2034864]
[1750321218976,8.17162703,145.67,145.64,24.03185937]
[1750321219563,8.17162703,145.68,145.64,24.03185937]
[1750321219765,8.17162703,145.67,145.64,24.03185937]
[1750321230864,5.23019309,145.67,145.64,24.03185937]
[1750321232690,26.0,145.69,145.64,24.03185937]
[1750321232865,5.23019309,145.67,145.64,24.03185937]
[1750321233692,5.23019309,145.68,145.64,24.03185937]
[1750321235493,31.13079836,145.71,145.67,5.23019309]
[1750321235690,31.23019309,145.71,145.67,5.23019309]
[1750321236188,26.0,145.71,145.67,5.23019309]
[1750321236779,27.68,145.78,145.69,5.23019309]
[1750321236780,5.23019309,145.73,145.69,5.23019309]
[1750321236981,5.23019309,145.74,145.69,5.23019309]
[1750321237189,5.23019309,145.74,145.7,5.23019309]
[1750321237380,5.13228133,145.73,145.71,24.02031431]
[1750321237581,5.1321477,145.75,145.71,24.02031431]
[1750321237781,10.36247334,145.74,145.71,24.02031431]
[1750321237982,5.23019309,145.74,145.71,24.02031431]
[1750321238897,8.16444828,145.74,145.71,24.02031431]
[1750321241297,13.29610506,145.75,145.71,32.18476259]
[1750321241497,8.16444828,145.75,145.71,24.02031431]
[1750321241895,8.16444828,145.75,145.71,32.18476259]
[1750321242993,45.83156909,145.76,145.71,32.18476259]
[1750321243207,13.29393653,145.75,145.71,32.18476259]
[1750321243397,8.16444828,145.75,145.71,32.18476259]
[1750321248689,19.83156909,145.76,145.73,8.16444828]
[1750321250380,19.83156909,145.76,145.74,6.86153423]
[1750321251006,19.83156909,145.76,145.74,15.02598251]
[1750321251691,19.83156909,145.76,145.74,6.86153423]
[1750321251887,19.83156909,145.76,145.74,15.02598251]
[1750321253613,19.83156909,145.76,145.74,6.86153423]
[1750321255614,27.99601737,145.76,145.74,6.86153423]
[1750321256497,27.99601737,145.76,145.73,24.01669344]
[1750321259598,8.16444828,145.75,145.73,17.15468837]
[1750321260819,5.22427894,145.75,145.73,17.15468837]
[1750321261126,25.05584803,145.76,145.73,17.15468837]
[1750321261730,19.83156909,145.76,145.73,29.24097238]
[1750321262075,25.05584803,145.76,145.73,24.01669344]
[1750321262620,25.05584803,145.76,145.73,29.24097238]
[1750321262621,19.83156909,145.76,145.73,29.24097238]
[1750321262831,25.05584803,145.76,145.73,24.01669344]
[1750321263198,5.22427894,145.75,145.73,24.01669344]
[1750321263497,19.83156909,145.76,145.73,29.24097238]
[1750321265589,19.83156909,145.76,145.74,5.22427894]
[1750321266009,19.83156909,145.76,145.75,5.22427894]
[1750321266210,19.83156909,145.76,145.74,5.22427894]
[1750321267444,19.83156909,145.76,145.75,6.86106346]